bitfinex/quotes_BTCUSD_20250901
["timestamp","ask_amount","ask_price","bid_price","bid_amount"]
[1756719612724,0.62570589,109840.0,109830.0,0.1884596]
[1756719613572,0.33884302,109840.0,109830.0,0.1884596]
[1756719614562,0.63486778,109840.0,109830.0,0.1884596]
[1756719614977,0.34800491,109840.0,109830.0,0.1884596]
[1756719615189,0.63486778,109840.0,109830.0,0.1884596]
[1756719617637,0.47810778,109840.0,109830.0,0.1884596]
[1756719617838,0.63458778,109840.0,109830.0,0.1884596]
[1756719618046,0.34772491,109840.0,109830.0,0.1884596]
[1756719618253,0.19124491,109840.0,109830.0,0.1884596]
[1756719618602,0.63450778,109840.0,109830.0,0.1884596]
[1756719618787,0.63446778,109840.0,109830.0,0.1884596]
[1756719619113,0.63661778,109840.0,109830.0,0.00636]
[1756719619358,0.63661778,109840.0,109830.0,0.1884596]
[1756719622077,0.34975491,109840.0,109830.0,0.1882596]
[1756719622314,0.63661778,109840.0,109830.0,0.1882596]
[1756719623138,0.63661778,109840.0,109830.0,0.00616]
[1756719623585,0.34975491,109840.0,109830.0,0.1882596]
[1756719623791,0.63661778,109840.0,109830.0,0.1882596]
[1756719624372,0.63661778,109840.0,109830.0,0.1852596]
[1756719626196,0.63661778,109840.0,109830.0,0.1882596]
[1756719629623,0.63954778,109840.0,109830.0,0.00316]
[1756719629992,0.63954778,109840.0,109830.0,0.00309]
[1756719631195,0.63954778,109840.0,109830.0,0.001]
[1756719636182,0.63954778,109840.0,109830.0,0.00309]
[1756719637712,0.63954778,109840.0,109830.0,0.001]
[1756719638658,0.63902778,109840.0,109830.0,0.001]
[1756719639568,0.63902778,109840.0,109830.0,0.00309]
[1756719639784,0.63609778,109840.0,109830.0,0.00609]
[1756719640005,0.63597778,109840.0,109830.0,0.1881896]
[1756719640190,0.63597778,109840.0,109830.0,0.00609]
[1756719640418,0.63597778,109840.0,109830.0,0.00309]
[1756719640607,0.63597778,109840.0,109830.0,0.00609]
[1756719641209,0.63890778,109840.0,109830.0,0.00309]
[1756719642132,0.48318778,109840.0,109830.0,0.00309]
[1756719642342,0.63890778,109840.0,109830.0,0.00309]
[1756719642638,0.63890778,109840.0,109830.0,0.001]
[1756719643693,0.63890778,109840.0,109830.0,0.00309]
[1756719644320,0.63890778,109840.0,109830.0,0.1851896]
[1756719644521,0.48025778,109840.0,109830.0,0.19046584]
[1756719644800,0.63370778,109840.0,109830.0,0.1881896]
[1756719644987,0.66622873,109850.0,109840.0,0.18208302]
[1756719644988,0.00475279,109850.0,109840.0,0.18208302]
[1756719645197,0.62449735,109870.0,109850.0,0.18205128]
[1756719645401,0.62742735,109870.0,109850.0,0.27803129]
[1756719645814,0.97668037,109870.0,109860.0,0.18204988]
[1756719645984,0.97878037,109870.0,109860.0,0.18204988]
[1756719646196,0.97878037,109870.0,109850.0,0.27803129]
[1756719646396,0.97878037,109870.0,109850.0,0.30538429]
[1756719646604,0.63878037,109870.0,109850.0,0.30538429]
[1756719646985,0.28686287,109860.0,109850.0,0.30538429]
[1756719647184,0.28686287,109860.0,109850.0,0.30747429]
[1756719647780,0.28686287,109860.0,109850.0,0.30847429]
[1756719648020,0.3498175,109870.0,109850.0,0.30847429]
[1756719648250,0.63668037,109870.0,109850.0,0.30847429]
[1756719648429,0.76291405,109870.0,109850.0,0.30747429]
[1756719648641,0.94494853,109870.0,109850.0,0.30747429]
[1756719649278,0.94494853,109870.0,109860.0,0.18204988]
[1756719649456,0.94704853,109870.0,109860.0,0.18204988]
[1756719650654,0.94704853,109870.0,109860.0,0.001]
[1756719651873,0.95704853,109870.0,109860.0,0.001]
[1756719657033,0.82815037,109870.0,109860.0,0.1904055]
[1756719657270,0.98367037,109870.0,109860.0,0.18812988]
[1756719657480,0.98566037,109870.0,109860.0,0.18506988]
[1756719657824,0.98566037,109870.0,109860.0,0.18812988]
[1756719658244,0.98566037,109870.0,109860.0,0.18506988]
[1756719658654,0.98566037,109870.0,109860.0,0.001]
[1756719658655,0.98882037,109870.0,109860.0,0.001]
[1756719658826,0.98882037,109870.0,109860.0,0.18304988]
[1756719661067,0.7019575,109870.0,109860.0,0.18304988]
[1756719661246,0.98882037,109870.0,109860.0,0.18304988]
[1756719661608,0.98882037,109870.0,109860.0,0.18506988]
[1756719662404,0.98882037,109870.0,109860.0,0.18304988]
[1756719663791,0.7019575,109870.0,109860.0,0.18304988]
[1756719663995,0.98882037,109870.0,109860.0,0.18304988]
[1756719665659,0.98566037,109870.0,109860.0,0.18506988]
[1756719665860,0.83014037,109870.0,109860.0,0.18506988]
[1756719666079,0.98866687,109870.0,109860.0,0.18506988]
[1756719666518,0.98866687,109870.0,109860.0,0.18304988]
[1756719666727,0.63941385,109870.0,109860.0,0.001]
[1756719666934,0.6486193,109870.0,109860.0,0.18304988]
[1756719667145,0.93536867,109870.0,109860.0,0.001]
[1756719667351,6.16941786,109870.0,109860.0,0.001]
[1756719667641,6.60179181,109870.0,109810.0,0.33641225]
[1756719667863,0.57349874,109820.0,109810.0,0.34722708]
[1756719668075,0.54796469,109840.0,109830.0,0.027357]
[1756719668289,0.1820996,109830.0,109820.0,0.18516669]
[1756719668496,0.70543469,109840.0,109830.0,0.1871796]
[1756719668497,0.69630955,109840.0,109830.0,0.1871796]
[1756719668708,0.78222937,109840.0,109830.0,0.28015961]
[1756719668938,0.96630239,109840.0,109830.0,0.09500001]
[1756719669218,0.027363,109850.0,109840.0,0.18208302]
[1756719669427,1.06897501,109860.0,109840.0,0.27708303]
[1756719669636,0.73140216,109860.0,109850.0,0.27504646]
[1756719669848,0.88212937,109860.0,109850.0,0.28012646]
[1756719670061,1.22216582,109860.0,109850.0,0.28012646]
[1756719670493,0.21801141,109870.0,109860.0,0.18204988]
[1756719670494,0.31050109,109870.0,109860.0,0.18204988]
[1756719670701,0.64848832,109870.0,109860.0,0.1894055]
[1756719670913,0.65047832,109870.0,109860.0,0.18406988]
[1756719671124,0.65047832,109870.0,109850.0,0.27810646]
[1756719671125,0.18204988,109860.0,109850.0,0.27504646]
[1756719671365,0.91426152,109860.0,109850.0,0.27504646]
[1756719671577,0.18206645,109850.0,109840.0,0.19118717]
[1756719671782,0.62632227,109850.0,109840.0,0.28618718]
[1756719672817,0.62632227,109850.0,109840.0,0.28718718]
[1756719673700,0.00199,109850.0,109840.0,0.28718718]
[1756719673921,0.44425582,109850.0,109840.0,0.29124718]
[1756719674150,0.62948227,109850.0,109840.0,0.09498001]
[1756719674364,0.96948227,109850.0,109840.0,0.27706303]
[1756719674584,0.81400227,109850.0,109840.0,0.27706303]
[1756719674805,0.34,109850.0,109840.0,0.28214303]
[1756719675083,0.67752988,109860.0,109850.0,0.18206645]
[1756719675303,0.9663057,109860.0,109850.0,0.18636228]
[1756719676370,0.9673057,109860.0,109850.0,0.18636228]
[1756719676818,0.9673057,109860.0,109850.0,0.18942228]
[1756719677002,0.9673057,109860.0,109850.0,0.18408645]
[1756719677303,0.68367988,109860.0,109850.0,0.00227583]
[1756719677518,0.8149857,109860.0,109850.0,0.00227583]
[1756719677725,0.9704657,109860.0,109850.0,0.00227583]
[1756719678755,0.9804657,109860.0,109850.0,0.00227583]
[1756719679181,0.18209987,109840.0,109820.0,0.18211537]
[1756719679408,0.67757987,109840.0,109830.0,0.1820996]
[1756719679619,0.49548,109850.0,109840.0,0.18207772]
[1756719679827,0.34199,109850.0,109840.0,0.09298001]
[1756719680052,0.49747,109850.0,109840.0,0.28014303]
[1756719680490,0.49548,109850.0,109840.0,0.28014303]
[1756719680712,0.15548,109850.0,109840.0,0.28014303]
[1756719680933,0.44226582,109850.0,109840.0,0.28014303]
[1756719681147,0.44425582,109850.0,109840.0,0.28014303]
[1756719681373,0.44226582,109850.0,109840.0,0.28014303]
[1756719682894,0.18208302,109840.0,109830.0,0.027357]
[1756719683103,0.44226582,109840.0,109830.0,0.28038585]
[1756719683320,0.62678582,109850.0,109840.0,0.18208302]
[1756719683527,0.34,109850.0,109840.0,0.27711303]
[1756719683735,0.70678582,109860.0,109850.0,0.18206645]
[1756719683953,0.70893582,109860.0,109850.0,0.18434228]
[1756719684161,0.86441582,109860.0,109850.0,0.18434228]
[1756719684371,0.86441582,109860.0,109850.0,0.18639228]
[1756719684589,0.18206645,109850.0,109840.0,0.09298001]
[1756719684799,0.47424227,109850.0,109840.0,0.27506303]
[1756719685006,0.29217582,109850.0,109840.0,0.27506303]
[1756719685768,0.29217582,109850.0,109840.0,0.27606303]
[1756719685961,0.44437582,109850.0,109840.0,0.27811303]
[1756719686928,0.62644227,109850.0,109840.0,0.27811303]
[1756719687117,0.44437582,109850.0,109840.0,0.27811303]
[1756719687349,0.44437582,109850.0,109840.0,0.27911303]
[1756719687562,0.99062109,109850.0,109840.0,0.002]
[1756719688015,0.80071023,109850.0,109840.0,0.002]
[1756719688228,0.80071023,109850.0,109840.0,0.18408302]
[1756719688229,0.77653141,109850.0,109840.0,0.18408302]
[1756719688446,0.63109141,109850.0,109840.0,0.18613302]
[1756719688633,0.75916941,109850.0,109840.0,0.18816302]
[1756719688845,0.08166296,109850.0,109840.0,0.28114303]
[1756719689107,0.16544,109850.0,109840.0,0.28114303]
[1756719689470,0.16544,109850.0,109840.0,0.28014303]
[1756719691165,0.45222582,109850.0,109840.0,0.28014303]
[1756719693291,0.63644227,109850.0,109840.0,0.27711303]
[1756719693736,0.45437582,109850.0,109840.0,0.27711303]
[1756719696126,0.45437582,109850.0,109840.0,0.28014303]
[1756719696547,0.63968227,109850.0,109840.0,0.27506303]
[1756719696752,0.63644227,109850.0,109840.0,0.27711303]
[1756719697803,0.34965645,109850.0,109840.0,0.27711303]
[1756719698006,0.63644227,109850.0,109840.0,0.27711303]
[1756719698740,0.45437582,109850.0,109840.0,0.27711303]
[1756719699202,0.63644227,109850.0,109840.0,0.27711303]
[1756719699415,0.63644227,109850.0,109840.0,0.27506303]
[1756719699641,0.63968227,109850.0,109840.0,0.27506303]
[1756719700025,0.63644227,109850.0,109840.0,0.27711303]
[1756719700545,0.34965645,109850.0,109840.0,0.27711303]
[1756719700757,0.63644227,109850.0,109840.0,0.27711303]
[1756719701367,0.48100227,109850.0,109840.0,0.27711303]
[1756719701568,0.63644227,109850.0,109840.0,0.27711303]
[1756719702489,0.63968227,109850.0,109840.0,0.27506303]
[1756719703279,0.63644227,109850.0,109840.0,0.27711303]
[1756719704340,0.63968227,109850.0,109840.0,0.27506303]
[1756719704544,0.63968227,109850.0,109820.0,0.18210866]
[1756719704752,0.63968227,109850.0,109830.0,0.09298001]
[1756719704753,0.47210884,109840.0,109830.0,0.09298001]
[1756719704955,0.83010559,109850.0,109840.0,0.18413302]
[1756719705183,0.98550559,109850.0,109840.0,0.18413302]
[1756719705307,0.98550559,109850.0,109840.0,0.00508]
[1756719705531,0.53206645,109850.0,109840.0,0.28241906]
[1756719705764,0.68746645,109850.0,109840.0,0.28014303]
[1756719706220,0.68746645,109850.0,109840.0,0.27711303]
[1756719706368,0.68746645,109850.0,109840.0,0.28014303]
[1756719706824,0.97525227,109850.0,109840.0,0.28014303]
[1756719707267,0.97425227,109850.0,109840.0,0.28014303]
[1756719707467,0.97625227,109850.0,109840.0,0.28014303]
[1756719707891,0.68746645,109850.0,109840.0,0.28014303]
[1756719708107,0.97425227,109850.0,109840.0,0.28014303]
[1756719708331,0.68746645,109850.0,109840.0,0.28014303]
[1756719708560,0.97640227,109850.0,109840.0,0.28014303]
[1756719709011,0.97425227,109850.0,109840.0,0.28014303]
[1756719709972,0.97640227,109850.0,109840.0,0.28014303]
[1756719710210,0.97640227,109850.0,109840.0,0.27711303]
[1756719710587,0.97640227,109850.0,109840.0,0.28014303]
[1756719711175,0.97640227,109850.0,109840.0,0.27711303]
[1756719711383,0.97964227,109850.0,109840.0,0.27506303]
[1756719711583,0.69285645,109850.0,109840.0,0.27506303]
[1756719711788,0.97964227,109850.0,109840.0,0.09298001]
[1756719712229,0.69285645,109850.0,109840.0,0.27506303]
[1756719712438,0.97640227,109850.0,109840.0,0.27720303]
[1756719712646,0.97948227,109850.0,109840.0,0.27720303]
[1756719712855,0.97948227,109850.0,109840.0,0.27506303]
[1756719713059,0.97948227,109850.0,109840.0,0.09298001]
[1756719714045,0.68961645,109850.0,109840.0,0.28035303]
[1756719714271,0.68746645,109850.0,109840.0,0.28035303]
[1756719714490,0.97621227,109850.0,109840.0,0.27720303]
[1756719720176,0.68942645,109850.0,109840.0,0.28035303]
[1756719720386,0.97929227,109850.0,109840.0,0.27720303]
[1756719720599,0.97929227,109850.0,109840.0,0.09512001]
[1756719721692,0.97929227,109850.0,109840.0,0.09298001]
[1756719722347,0.68942645,109850.0,109840.0,0.09512001]
[1756719722560,0.97621227,109850.0,109840.0,0.28035303]
[1756719722773,0.97621227,109850.0,109840.0,0.27720303]
[1756719722978,0.97621227,109850.0,109840.0,0.09512001]
[1756719723641,0.97929227,109850.0,109840.0,0.09298001]
[1756719726734,0.69250645,109850.0,109840.0,0.09298001]
[1756719726939,0.97929227,109850.0,109840.0,0.09298001]
[1756719727155,0.97929227,109850.0,109840.0,0.27506303]
[1756719728496,0.97929227,109850.0,109840.0,0.09298001]
[1756719729998,0.97929227,109850.0,109840.0,0.27506303]
[1756719730131,0.97621227,109850.0,109840.0,0.27720303]
[1756719730331,0.97621227,109850.0,109840.0,0.09512001]
[1756719730959,0.97929227,109850.0,109840.0,0.09298001]
[1756719732080,0.77311401,109850.0,109840.0,0.09298001]
[1756719732328,0.62929227,109850.0,109840.0,0.09298001]
[1756719732972,0.62929227,109850.0,109820.0,0.34661446]
[1756719732973,0.1820996,109830.0,109820.0,0.67750473]
[1756719733181,0.1820996,109830.0,109820.0,0.62037474]
[1756719733182,0.44218582,109830.0,109820.0,0.62037474]
[1756719733406,0.46888263,109840.0,109830.0,0.1820996]
[1756719733641,0.62932263,109840.0,109830.0,0.1820996]
[1756719733886,0.62624263,109840.0,109830.0,0.28264585]
[1756719734016,0.62624263,109840.0,109830.0,0.28036961]
[1756719734455,0.62624263,109840.0,109830.0,0.27721961]
[1756719734654,0.62428263,109840.0,109830.0,0.27721961]
[1756719734857,0.62428263,109840.0,109830.0,0.28036961]
[1756719735289,0.44218582,109840.0,109830.0,0.28036961]
[1756719735517,0.47795559,109850.0,109840.0,0.18208302]
[1756719735694,0.63531559,109850.0,109840.0,0.27947906]
[1756719735909,0.63531559,109850.0,109840.0,0.28035303]
[1756719736114,0.44414582,109850.0,109840.0,0.28035303]
[1756719736353,0.62621227,109850.0,109840.0,0.28035303]
[1756719736672,0.62721227,109850.0,109840.0,0.28035303]
[1756719736890,0.47181227,109850.0,109840.0,0.27720303]
[1756719737138,0.44514582,109850.0,109840.0,0.28035303]
[1756719737346,0.44518582,109850.0,109840.0,0.28035303]
[1756719737752,0.62725227,109850.0,109840.0,0.28035303]
[1756719738904,0.62921227,109850.0,109840.0,0.28035303]
[1756719741784,0.96921227,109850.0,109840.0,0.28035303]
[1756719744584,0.96921227,109850.0,109840.0,0.27720303]
[1756719745450,0.97221227,109850.0,109840.0,0.27506303]
[1756719746933,0.97221227,109850.0,109840.0,0.27703303]
[1756719748108,0.96921227,109850.0,109840.0,0.27703303]
[1756719748771,0.50036,109850.0,109840.0,0.27703303]
[1756719748972,0.96921227,109850.0,109840.0,0.27703303]
[1756719749179,0.50036,109850.0,109840.0,0.28009303]
[1756719749415,0.96921227,109850.0,109840.0,0.28009303]
[1756719749854,0.97221227,109850.0,109840.0,0.27506303]
[1756719750274,0.96921227,109850.0,109840.0,0.27703303]
[1756719750993,0.68242645,109850.0,109840.0,0.27703303]
[1756719751270,0.96921227,109850.0,109840.0,0.27703303]
[1756719751480,0.97221227,109850.0,109840.0,0.27506303]
[1756719753185,0.63221227,109850.0,109840.0,0.27506303]
[1756719753999,0.63229107,109850.0,109840.0,0.27506303]
[1756719756560,0.34542645,109850.0,109840.0,0.27506303]
[1756719756772,0.63229107,109850.0,109840.0,0.27703303]
[1756719757397,0.97229107,109850.0,109840.0,0.27506303]
[1756719759008,0.97229107,109850.0,109840.0,0.09298001]
[1756719759532,1.25915569,109850.0,109840.0,0.09298001]
[1756719759750,1.25915569,109850.0,109840.0,0.27506303]
[1756719760585,1.25915569,109850.0,109840.0,0.09298001]
[1756719760791,0.68542645,109850.0,109840.0,0.27506303]
[1756719760999,1.25915569,109850.0,109840.0,0.27506303]
[1756719763921,1.25915569,109850.0,109840.0,0.09298001]
[1756719764525,1.25915569,109850.0,109840.0,0.27506303]
[1756719765103,0.97229107,109850.0,109840.0,0.27506303]
[1756719765311,0.97229107,109850.0,109840.0,0.09298001]
[1756719765799,0.68542645,109850.0,109840.0,0.09298001]
[1756719766007,0.97229107,109850.0,109840.0,0.27506303]
[1756719769844,0.97225107,109850.0,109840.0,0.27703303]
[1756719770026,0.96925107,109850.0,109840.0,0.27703303]
[1756719770473,0.77080606,109850.0,109840.0,0.27703303]
[1756719770707,0.95499251,109850.0,109840.0,0.28009303]
[1756719772885,0.95499251,109850.0,109840.0,0.27506303]
[1756719773398,0.95499251,109850.0,109840.0,0.27711303]
[1756719773608,0.95499251,109850.0,109840.0,0.27506303]
[1756719774111,0.95499251,109850.0,109840.0,0.27711303]
[1756719774928,0.66812789,109850.0,109840.0,0.28004303]
[1756719775073,0.95499251,109850.0,109840.0,0.28004303]
[1756719775278,0.95499251,109850.0,109840.0,0.27711303]
[1756719776709,0.95499251,109850.0,109840.0,0.27506303]
[1756719777143,0.95499251,109850.0,109840.0,0.27711303]
[1756719777350,0.79963251,109850.0,109840.0,0.27711303]
[1756719777598,0.95495251,109850.0,109840.0,0.28004303]
[1756719778317,0.77288606,109850.0,109840.0,0.28004303]
[1756719778475,0.66808789,109850.0,109840.0,0.28004303]
[1756719778683,0.95495251,109850.0,109840.0,0.28004303]
[1756719779706,0.66808789,109850.0,109840.0,0.28004303]
[1756719779910,0.95495251,109850.0,109840.0,0.28004303]
[1756719780516,0.32858144,109850.0,109840.0,0.28004303]
[1756719780723,0.00475279,109860.0,109850.0,0.18206645]
[1756719780934,0.63612735,109870.0,109860.0,0.18204988]
[1756719781143,0.45192127,109870.0,109860.0,0.27707989]
[1756719781507,0.45192127,109870.0,109860.0,0.28000989]
[1756719782053,0.63660127,109870.0,109860.0,0.28000989]
[1756719782282,0.34973665,109870.0,109860.0,0.28000989]
[1756719782491,0.15579392,109870.0,109860.0,0.28000989]
[1756719782704,0.15579392,109870.0,109860.0,0.30735889]
[1756719783128,0.00047392,109870.0,109860.0,1.03640813]
[1756719783356,0.00047392,109870.0,109860.0,0.74954351]
[1756719784264,0.00047392,109870.0,109860.0,0.75054351]
[1756719784488,0.00047392,109870.0,109860.0,1.23640813]
[1756719784910,0.00047392,109870.0,109860.0,1.23840813]
[1756719785392,0.00047392,109870.0,109860.0,0.95154351]
[1756719785619,0.00047392,109870.0,109860.0,1.01950351]
[1756719785816,0.00047392,109870.0,109860.0,1.02250351]
[1756719786024,0.00047392,109870.0,109860.0,1.02225444]
[1756719786498,0.0002,109890.0,109880.0,0.46863229]
[1756719786727,0.00028625,109890.0,109880.0,0.7218723]
[1756719787131,0.00028625,109890.0,109880.0,0.7492143]
[1756719787263,0.00028625,109890.0,109880.0,0.5939343]
[1756719787487,0.00028625,109890.0,109880.0,0.46359875]
[1756719787691,0.00028625,109890.0,109880.0,0.9502143]
[1756719788107,0.0002,109910.0,109900.0,0.18198362]
[1756719788309,0.0002,109910.0,109900.0,0.71913397]
[1756719788526,0.0002,109910.0,109900.0,0.43522363]
[1756719788759,0.0002,109910.0,109900.0,0.74917618]
[1756719790422,0.0002,109910.0,109900.0,0.75117618]
[1756719790621,0.0002,109910.0,109900.0,0.94917618]
[1756719790820,0.0002,109910.0,109900.0,0.95017618]
[1756719791027,0.0002,109910.0,109900.0,0.95417618]
[1756719791424,0.0002,109910.0,109900.0,0.79889618]
[1756719791634,0.0002,109910.0,109900.0,0.95413618]
[1756719791852,0.0002,109910.0,109900.0,0.79889618]
[1756719792162,0.0002,109910.0,109900.0,0.66752063]
[1756719792360,0.0002,109910.0,109900.0,0.51228063]
[1756719792578,0.0002,109910.0,109900.0,0.46752063]
[1756719792776,0.28681555,109910.0,109900.0,0.46752063]
[1756719793041,0.28881555,109910.0,109900.0,0.30935063]
[1756719793209,0.29191555,109910.0,109900.0,0.30730063]
[1756719793882,0.47388261,109910.0,109900.0,0.30730063]
[1756719794084,0.88384261,109910.0,109900.0,0.005]
[1756719794612,0.88384261,109910.0,109900.0,0.004]
[1756719794825,0.70187555,109910.0,109900.0,0.18198362]
[1756719795204,0.56536,109910.0,109900.0,0.28421842]
[1756719795442,0.85197555,109910.0,109900.0,0.28194363]
[1756719796049,0.85397555,109910.0,109900.0,0.28194363]
[1756719796290,0.0002,109910.0,109900.0,0.28194363]
[1756719796824,0.0002,109910.0,109900.0,0.76855918]
[1756719797032,0.0012,109910.0,109900.0,0.76655918]
[1756719797484,0.0002,109910.0,109900.0,0.76655918]
[1756719797883,0.0002,109910.0,109900.0,0.76855918]
[1756719798134,0.0002,109910.0,109900.0,0.76755918]
[1756719798350,0.0002,109910.0,109900.0,0.77155918]
[1756719798567,0.0002,109910.0,109900.0,1.11455918]
[1756719799926,0.0002,109910.0,109900.0,0.82794363]
[1756719800150,0.0002,109910.0,109900.0,1.11455918]
[1756719802860,0.0002,109910.0,109900.0,1.21058918]
[1756719803072,0.0002,109910.0,109900.0,1.14189418]
[1756719804696,0.0002,109910.0,109900.0,0.85527863]
[1756719804899,0.0002,109910.0,109900.0,1.01039863]
[1756719807139,0.0002,109910.0,109900.0,1.29701418]
[1756719808550,0.0002,109910.0,109900.0,1.01039863]
[1756719808736,0.0002,109910.0,109900.0,1.29701418]
[1756719810392,0.0002,109910.0,109900.0,1.01039863]
[1756719810572,0.0002,109910.0,109900.0,1.29701418]
[1756719815480,0.0002,109910.0,109900.0,1.01039863]
[1756719815688,0.0002,109910.0,109900.0,1.29701418]
[1756719816723,0.00222,109910.0,109900.0,0.85234863]
[1756719816877,0.00222,109910.0,109900.0,0.31548863]
[1756719817106,0.29198555,109910.0,109900.0,0.46537863]
[1756719818097,0.00537,109910.0,109900.0,0.46537863]
[1756719818304,0.29198555,109910.0,109900.0,0.46537863]
[1756719818904,0.29198555,109910.0,109900.0,0.46237863]
[1756719819106,0.29198555,109910.0,109900.0,0.45837863]
[1756719819565,0.29198555,109910.0,109900.0,0.46237863]
[1756719819951,0.00537,109910.0,109900.0,0.46237863]
[1756719820161,0.29198555,109910.0,109900.0,0.46237863]
[1756719821615,0.00537,109910.0,109900.0,0.43504363]
[1756719821817,0.00222,109910.0,109900.0,0.43504363]
[1756719822027,0.28883555,109910.0,109900.0,0.43504363]
[1756719824358,0.29198555,109910.0,109900.0,0.27996363]
[1756719824574,0.29198555,109910.0,109900.0,0.43500363]
[1756719829351,0.47395261,109910.0,109900.0,0.27996363]
[1756719829573,0.29198555,109910.0,109900.0,0.43496363]
[1756719830616,0.44383555,109910.0,109900.0,0.27996363]
[1756719830830,0.28883555,109910.0,109900.0,0.28200363]
[1756719831817,0.07619383,109910.0,109900.0,0.28313363]
[1756719831997,0.23119383,109910.0,109900.0,0.28528363]
[1756719832202,0.00096395,109920.0,109910.0,0.18196706]
[1756719832403,0.6265962,109920.0,109910.0,0.27722165]
[1756719832770,0.91485175,109920.0,109910.0,0.09298001]
[1756719832983,0.91485175,109920.0,109910.0,0.27494707]
[1756719833410,0.75985175,109920.0,109910.0,0.27494707]
[1756719833642,0.91321175,109920.0,109910.0,0.27494707]
[1756719833847,0.91321175,109920.0,109910.0,0.27694707]
[1756719834267,0.4446457,109920.0,109910.0,0.27694707]
[1756719834474,0.4446457,109920.0,109910.0,0.28226707]
[1756719835129,0.00105015,109920.0,109910.0,0.72388262]
[1756719835550,0.00105015,109920.0,109910.0,0.46460207]
[1756719835756,0.00105015,109920.0,109910.0,0.75121762]
[1756719836211,0.00105015,109920.0,109910.0,0.96037701]
[1756719836631,0.00105015,109920.0,109910.0,0.95837701]
[1756719836836,0.00105015,109920.0,109910.0,0.95937701]
[1756719837272,0.00105015,109920.0,109910.0,0.67272146]
[1756719837495,0.00105015,109920.0,109910.0,0.96333701]
[1756719837706,0.00105015,109920.0,109910.0,0.95933701]
[1756719837860,0.00105015,109920.0,109910.0,0.96433701]
[1756719838069,0.00105015,109920.0,109910.0,1.00570161]
[1756719838490,0.00105015,109920.0,109910.0,1.00470161]
[1756719838647,0.00105015,109920.0,109910.0,1.00770161]
[1756719841278,0.00105015,109920.0,109910.0,0.95717762]
[1756719841483,0.00105015,109920.0,109910.0,0.95713762]
[1756719843514,0.00105015,109920.0,109910.0,0.96645797]
[1756719843725,0.00105015,109920.0,109910.0,0.67984242]
[1756719843935,0.00105015,109920.0,109910.0,0.95713762]
[1756719845288,0.00305015,109920.0,109910.0,0.31028207]
[1756719845498,0.00305015,109920.0,109910.0,0.46516207]
[1756719845721,0.00305015,109920.0,109910.0,0.31028207]
[1756719845933,0.00105015,109920.0,109910.0,0.46731207]
[1756719846152,0.00105015,109920.0,109910.0,0.75409762]
[1756719846379,0.00105015,109920.0,109910.0,0.74909762]
[1756719846604,0.00105015,109920.0,109910.0,0.75409762]
[1756719847035,0.00105015,109920.0,109910.0,0.75309762]
[1756719848336,0.00105015,109920.0,109910.0,0.75409762]
[1756719850061,0.00105015,109920.0,109910.0,0.95409762]
[1756719851066,0.00105015,109920.0,109910.0,1.29409762]
[1756719851278,0.00105015,109920.0,109910.0,1.07842089]
[1756719851487,0.00105015,109920.0,109910.0,1.36503644]
[1756719851903,0.00424752,109940.0,109930.0,0.4685495]
[1756719852131,0.00424752,109940.0,109930.0,0.71636951]
[1756719852356,0.00424752,109940.0,109930.0,0.72168951]
[1756719852580,0.00424752,109940.0,109930.0,0.74901751]
[1756719853215,0.00424752,109940.0,109930.0,0.75401751]
[1756719853423,0.00424752,109940.0,109930.0,0.75001751]
[1756719853903,0.00424752,109940.0,109930.0,0.75501751]
[1756719854118,0.00424752,109940.0,109930.0,0.46840196]
[1756719854330,0.00424752,109940.0,109930.0,0.75501751]
[1756719854541,0.00424752,109940.0,109930.0,0.75401751]
[1756719854964,0.00622752,109940.0,109930.0,0.46408196]
[1756719855196,0.29284307,109940.0,109930.0,0.30924196]
[1756719855408,0.29448307,109940.0,109930.0,0.43675396]
[1756719855615,0.47640047,109940.0,109930.0,0.28191396]
[1756719856070,0.18978492,109940.0,109930.0,0.28191396]
[1756719856282,0.18978492,109940.0,109930.0,0.27991396]
[1756719856283,0.29448307,109940.0,109930.0,0.27991396]
[1756719856491,0.29448307,109940.0,109930.0,0.27591396]
[1756719856909,0.29448307,109940.0,109930.0,0.27791396]
[1756719857325,0.47640047,109940.0,109930.0,0.27791396]
[1756719857739,0.29448307,109940.0,109930.0,0.27791396]
[1756719858023,0.47640047,109940.0,109930.0,0.27691396]
[1756719860433,0.97120047,109940.0,109930.0,0.002]
[1756719860636,1.25781602,109940.0,109930.0,0.002]
[1756719860972,0.97120047,109940.0,109930.0,0.002]
[1756719861388,0.97120047,109940.0,109930.0,0.18393395]
[1756719862046,0.78964307,109940.0,109930.0,0.27691396]
[1756719862257,0.63484307,109940.0,109930.0,0.27691396]
[1756719862467,0.16302752,109940.0,109930.0,0.28022396]
[1756719862671,0.29484307,109940.0,109930.0,0.28022396]
[1756719862904,0.29286307,109940.0,109930.0,0.28022396]
[1756719863116,0.00624752,109940.0,109930.0,0.28022396]
[1756719863328,0.29286307,109940.0,109930.0,0.28022396]
[1756719863532,0.29286307,109940.0,109930.0,0.43602396]
[1756719863709,0.29286307,109940.0,109930.0,0.43502396]
[1756719863926,0.29086307,109940.0,109930.0,0.43502396]
[1756719864350,0.29186307,109940.0,109930.0,0.43502396]
[1756719864973,0.29086307,109940.0,109930.0,0.43502396]
[1756719865152,0.29086307,109940.0,109930.0,0.43702396]
[1756719867547,0.00424752,109940.0,109930.0,0.43702396]
[1756719867980,0.00424752,109940.0,109930.0,0.46435396]
[1756719868403,0.00424752,109940.0,109930.0,0.46235396]
[1756719868614,0.00424752,109940.0,109930.0,0.46335396]
[1756719868821,0.00424752,109940.0,109930.0,0.46735396]
[1756719870001,0.0002,109960.0,109950.0,0.18190086]
[1756719870226,0.28695761,109960.0,109950.0,0.27715463]
[1756719870438,0.28893761,109960.0,109950.0,0.27488087]
[1756719871038,0.28993761,109960.0,109950.0,0.27697087]
[1756719871242,0.45398357,109960.0,109950.0,0.28019087]
[1756719871697,0.45398357,109960.0,109950.0,0.27810087]
[1756719871903,0.74223912,109960.0,109950.0,0.27488087]
[1756719872084,0.45562357,109960.0,109950.0,0.27488087]
[1756719872290,0.45562357,109960.0,109950.0,0.27588087]
[1756719877050,0.63750789,109960.0,109950.0,0.27588087]
[1756719877666,0.45562357,109960.0,109950.0,0.27588087]
[1756719878115,0.45398357,109960.0,109950.0,0.27588087]
[1756719878540,0.63586789,109960.0,109950.0,0.27588087]
[1756719879188,0.45398357,109960.0,109950.0,0.27588087]
[1756719879914,0.29922357,109960.0,109950.0,0.27588087]
[1756719880113,0.45390357,109960.0,109950.0,0.27588087]
[1756719880352,0.63578789,109960.0,109950.0,0.27588087]
[1756719881541,0.45390357,109960.0,109950.0,0.27588087]
[1756719882163,0.29922357,109960.0,109950.0,0.27797087]
[1756719882374,0.16530802,109960.0,109950.0,0.28119087]
[1756719882579,0.45192357,109960.0,109950.0,0.28119087]
[1756719882793,0.45390357,109960.0,109950.0,0.28119087]
[1756719883631,0.45390357,109960.0,109950.0,0.27890419]
[1756719883913,0.29922357,109960.0,109950.0,0.27890419]
[1756719884132,0.45390357,109960.0,109950.0,0.27890419]